bitfinex/quotes_SOLUSD_20250819
["timestamp","ask_amount","ask_price","bid_price","bid_amount"]
[1755625450845,26.66,178.38,178.37,0.06]
[1755625453254,0.66,178.38,178.37,0.06]
[1755625454731,0.66,178.4,178.37,0.06]
[1755625455133,7.19869139,178.38,178.37,0.06]
[1755625456556,7.85869139,178.38,178.37,0.06]
[1755625458960,33.19869139,178.38,178.37,0.06]
[1755625459339,7.19869139,178.38,178.37,0.06]
[1755625461633,7.19869139,178.4,178.37,13.65559401]
[1755625461832,7.19869139,178.4,178.38,0.36]
[1755625462965,131.0,178.41,178.38,0.36]
[1755625462966,138.19869139,178.41,178.38,0.36]
[1755625463139,7.19869139,178.4,178.37,0.06]
[1755625463965,7.19869139,178.4,178.37,0.42]
[1755625464344,138.19869139,178.41,178.37,0.42]
[1755625464861,7.19869139,178.41,178.37,0.42]
[1755625465359,33.19869139,178.42,178.37,0.42]
[1755625465555,0.69,178.43,178.39,13.73775558]
[1755625465556,0.03,178.43,178.39,13.73775558]
[1755625465737,7.22869139,178.43,178.4,0.36]
[1755625465940,7.22869139,178.43,178.39,13.73775558]
[1755625466135,7.19869139,178.42,178.39,13.73775558]
[1755625466540,7.88869139,178.43,178.39,13.73775558]
[1755625466742,7.19869139,178.4,178.38,13.59559401]
[1755625467062,7.85869139,178.39,178.37,0.06]
[1755625467469,7.19869139,178.38,178.37,0.06]
[1755625467649,7.85869139,178.38,178.37,0.06]
[1755625468773,7.19869139,178.38,178.37,0.06]
[1755625469543,7.85869139,178.38,178.37,0.06]
[1755625470070,7.19869139,178.38,178.37,0.06]
[1755625470488,7.19869139,178.39,178.37,0.06]
[1755625470776,7.19869139,178.4,178.37,0.06]
[1755625470954,7.19869139,178.4,178.37,0.42]
[1755625471351,7.19869139,178.39,178.37,0.06]
[1755625472081,7.19869139,178.4,178.37,0.06]
[1755625473173,7.85869139,178.4,178.37,0.06]
[1755625474363,0.66,178.4,178.37,0.06]
[1755625474567,7.85869139,178.4,178.37,0.06]
[1755625475474,7.85869139,178.39,178.37,0.06]
[1755625475673,7.19869139,178.38,178.37,0.06]
[1755625475885,7.85869139,178.38,178.37,0.06]
[1755625479274,3.7739698,178.39,178.37,0.06]
[1755625479472,3.7739698,178.39,178.37,13.65559401]
[1755625479787,3.7739698,178.41,178.39,13.59559401]
[1755625479974,3.77862805,178.42,178.39,13.59559401]
[1755625480283,7.22869139,178.43,178.39,13.59559401]
[1755625480284,3.80862805,178.43,178.41,7.19869139]
[1755625480474,0.03,178.43,178.42,21.29644697]
[1755625482090,0.03,178.43,178.42,13.73775558]
[1755625482276,0.03,178.43,178.42,13.59559401]
[1755625484187,0.69,178.43,178.42,13.59559401]
[1755625485893,7.88869139,178.43,178.39,13.73775558]
[1755625486062,0.66,178.42,178.39,13.73775558]
[1755625486476,7.22869139,178.43,178.39,13.73775558]
[1755625486680,0.66,178.42,178.39,13.73775558]
[1755625486873,0.03,178.43,178.39,0.14216157]
[1755625487077,7.19869139,178.42,178.39,0.14216157]
[1755625487274,7.85869139,178.42,178.39,0.14216157]
[1755625488167,7.22869139,178.43,178.39,0.14216157]
[1755625488489,7.88869139,178.43,178.39,0.14216157]
[1755625488794,0.03,178.43,178.39,7.34085296]
[1755625489004,7.22869139,178.43,178.39,0.14216157]
[1755625489296,7.19869139,178.41,178.37,0.20216157]
[1755625489500,0.66,178.4,178.37,0.20216157]
[1755625490369,0.03,178.43,178.37,0.06]
[1755625490370,7.19869139,178.38,178.37,0.06]
[1755625490592,7.85869139,178.38,178.37,0.06]
[1755625491679,33.85869139,178.38,178.37,0.06]
[1755625492872,37.63221283,178.38,178.37,0.06]
[1755625494074,26.0,178.37,178.35,0.06]
[1755625494268,10.97221283,178.36,178.35,0.06]
[1755625494676,4.43352144,178.36,178.35,0.06]
[1755625494880,11.63221283,178.36,178.35,0.06]
[1755625495205,30.43352144,178.36,178.35,0.06]
[1755625495374,37.63221283,178.36,178.35,0.06]
[1755625499991,33.85869139,178.36,178.35,0.06]
[1755625500196,37.62943425,178.36,178.35,0.06]
[1755625500981,37.62943372,178.36,178.35,0.06]
[1755625501771,37.62943372,178.36,178.34,0.06]
[1755625501991,51.64943372,178.35,178.34,0.06]
[1755625503618,51.64943372,178.35,178.25,13.59559401]
[1755625503821,26.0,178.32,178.29,0.42]
[1755625504025,40.02,178.35,178.29,13.59559401]
[1755625504324,7.19869139,178.36,178.32,13.59559401]
[1755625504521,0.69,178.4,178.31,0.06]
[1755625504522,7.19869139,178.37,178.31,0.06]
[1755625504816,7.19869139,178.34,178.31,13.65559401]
[1755625505022,7.19869139,178.32,178.31,0.06]
[1755625505521,7.88869139,178.32,178.31,0.06]
[1755625506100,8.45023676,178.32,178.31,0.06]
[1755625506508,7.88869139,178.32,178.31,0.06]
[1755625508196,0.69,178.32,178.31,0.06]
[1755625508397,7.88869139,178.32,178.31,0.06]
[1755625508921,0.69,178.32,178.31,0.06]
[1755625509090,66.71,178.34,178.31,0.06]
[1755625509306,7.19869139,178.37,178.31,21.2742854]
[1755625509604,7.19869139,178.39,178.35,13.59559401]
[1755625509805,7.19869139,178.39,178.35,14.01559401]
[1755625510018,7.19869139,178.39,178.34,13.59559401]
[1755625510327,26.0,178.39,178.35,0.42]
[1755625510638,33.19869139,178.39,178.35,0.42]
[1755625510929,33.19869139,178.39,178.34,13.73775558]
[1755625511140,7.19869139,178.37,178.34,13.59559401]
[1755625511333,7.19869139,178.36,178.34,13.59559401]
[1755625512131,7.88869139,178.36,178.32,0.14216157]
[1755625515509,7.88869139,178.33,178.32,0.06]
[1755625515940,7.19869139,178.33,178.32,0.06]
[1755625516119,7.19869139,178.34,178.32,0.06]
[1755625516439,7.19869139,178.33,178.32,0.06]
[1755625517626,7.88869139,178.33,178.32,0.06]
[1755625519550,26.69,178.35,178.32,0.06]
[1755625519845,7.19869139,178.34,178.32,0.06]
[1755625520139,7.19869139,178.33,178.32,0.06]
[1755625520513,33.19869139,178.34,178.32,0.06]
[1755625520713,7.19869139,178.33,178.32,0.06]
[1755625520909,7.88869139,178.33,178.32,0.06]
[1755625521179,47.90869139,178.33,178.32,0.06]
[1755625522640,55.10738278,178.33,178.32,0.06]
[1755625523020,72.46641438,178.33,178.32,0.06]
[1755625523220,65.26772299,178.33,178.32,0.06]
[1755625523410,51.67212899,178.33,178.32,0.06]
[1755625523624,47.90869139,178.33,178.32,0.06]
[1755625524314,48.47023676,178.33,178.32,0.06]
[1755625524647,59.43112415,178.33,178.32,0.06]
[1755625525033,59.43112415,178.33,178.31,0.06]
[1755625525222,18.84957878,178.32,178.31,0.06]
[1755625525547,11.65088739,178.32,178.31,0.06]
[1755625525744,13.90003639,178.32,178.31,0.06]
[1755625526052,40.44437927,178.32,178.31,0.06]
[1755625526223,53.92003639,178.32,178.31,0.06]
[1755625526534,61.11872778,178.32,178.31,0.06]
[1755625526936,66.72662369,178.32,178.31,0.06]
[1755625527133,66.86878526,178.32,178.31,0.06]
[1755625527339,7.19869139,178.27,178.26,0.06]
[1755625527534,47.23869139,178.27,178.26,0.06]
[1755625527941,40.04,178.27,178.26,0.06]
[1755625528126,47.23869139,178.27,178.26,0.06]
[1755625528959,47.92869139,178.27,178.26,0.06]
[1755625529350,47.23869139,178.27,178.26,0.06]
[1755625529676,40.04,178.27,178.26,0.06]
[1755625530132,7.19869139,178.3,178.26,0.48]
[1755625530339,40.04,178.3,178.27,0.42]
[1755625531037,40.04,178.3,178.26,13.65559401]
[1755625531826,47.23869139,178.3,178.26,13.65559401]
[1755625532228,47.92869139,178.3,178.26,13.65559401]
[1755625532737,7.19869139,178.29,178.26,0.06]
[1755625532931,7.19869139,178.28,178.26,0.06]
[1755625533353,7.89869139,178.28,178.26,0.06]
[1755625534035,7.19869139,178.28,178.26,0.06]
[1755625537274,26.0,178.27,178.26,0.06]
[1755625538333,33.89869139,178.27,178.26,0.06]
[1755625538759,73.93869139,178.27,178.26,0.06]
[1755625539078,51.71284705,178.27,178.26,0.06]
[1755625539249,44.51415566,178.27,178.26,0.06]
[1755625539561,69.81415566,178.27,178.26,0.06]
[1755625539768,77.71284705,178.27,178.26,0.06]
[1755625539977,26.0,178.27,178.26,0.06]
[1755625540283,26.0,178.27,178.26,0.48]
[1755625540799,47.23869139,178.31,178.26,0.48]
[1755625541090,3.77321584,178.3,178.26,0.06]
[1755625541470,10.97190723,178.3,178.26,0.06]
[1755625542157,7.19869139,178.27,178.26,0.06]
[1755625542783,33.19869139,178.28,178.26,0.06]
[1755625542985,26.0,178.28,178.26,0.06]
[1755625543879,7.19869139,178.29,178.26,0.06]
[1755625544058,11.67171029,178.3,178.26,0.06]
[1755625544575,7.89869139,178.29,178.26,0.06]
[1755625545200,3.7730189,178.3,178.26,0.06]
[1755625545201,7.19869139,178.27,178.26,0.06]
[1755625545566,7.89869139,178.27,178.26,0.06]
[1755625546299,11.67231723,178.27,178.26,0.06]
[1755625547088,11.67231723,178.27,178.25,0.06]
[1755625547293,11.67231723,178.27,178.16,13.59559401]
[1755625547294,7.19869139,178.17,178.16,13.59559401]
[1755625547459,7.19869139,178.18,178.16,14.01559401]
[1755625548159,47.23869139,178.21,178.16,0.14216157]
[1755625548360,7.19869139,178.19,178.15,13.59559401]
[1755625548558,7.19869139,178.19,178.15,14.01559401]
[1755625548779,7.19869139,178.2,178.16,0.14216157]
[1755625548992,7.19869139,178.2,178.17,0.42]
[1755625549502,47.23869139,178.21,178.18,0.42]
[1755625549665,33.19869139,178.22,178.18,14.01559401]
[1755625550075,40.04,178.23,178.18,13.59559401]
[1755625550296,7.19869139,178.24,178.19,7.61869139]
[1755625550475,7.19869139,178.23,178.19,0.42]
[1755625550670,7.19869139,178.22,178.18,0.14216157]
[1755625551692,7.19869139,178.23,178.19,13.59559401]
[1755625551999,7.89869139,178.22,178.18,13.73775558]
[1755625552181,7.89869139,178.21,178.16,0.42]
[1755625552494,3.76757641,178.24,178.16,13.59559401]
[1755625552495,7.89869139,178.2,178.16,13.59559401]
[1755625552673,7.19869139,178.2,178.16,14.01559401]
[1755625552997,7.19869139,178.21,178.16,14.01559401]
[1755625553203,47.23869139,178.22,178.17,7.61869139]
[1755625553368,40.04,178.22,178.15,0.14216157]
[1755625553567,7.19869139,178.21,178.17,0.14216157]
[1755625553877,7.89869139,178.21,178.16,0.14216157]
[1755625554282,7.89869139,178.21,178.17,13.59559401]
[1755625554599,7.19869139,178.18,178.14,13.73775558]
[1755625554801,7.89869139,178.18,178.14,13.73775558]
[1755625555003,7.89869139,178.17,178.12,0.06]
[1755625555171,7.89869139,178.17,178.12,13.65559401]
[1755625555368,7.19869139,178.17,178.12,0.06]
[1755625555596,7.89869139,178.16,178.12,0.06]
[1755625556175,0.7,178.16,178.12,0.06]
[1755625556394,7.19869139,178.17,178.12,0.48]
[1755625556576,7.19869139,178.17,178.13,39.59559401]
[1755625556773,7.19869139,178.18,178.13,39.59559401]
[1755625556972,40.74,178.19,178.15,13.59559401]
[1755625556973,7.89869139,178.19,178.15,13.59559401]
[1755625557487,7.19869139,178.19,178.14,13.73775558]
[1755625557664,7.19869139,178.17,178.14,13.59559401]
[1755625557865,7.89869139,178.18,178.14,13.59559401]
[1755625558394,7.89869139,178.18,178.13,13.59559401]
[1755625558717,7.89869139,178.18,178.13,13.73775558]
[1755625558898,0.7,178.18,178.13,13.73775558]
[1755625559110,7.19869139,178.17,178.13,13.73775558]
[1755625559605,7.19869139,178.19,178.14,21.2142854]
[1755625559771,7.19869139,178.19,178.14,14.01559401]
[1755625560404,157.0,178.22,178.15,0.42]
[1755625560581,131.0,178.22,178.18,7.19869139]
[1755625560782,131.0,178.22,178.19,7.61869139]
[1755625560991,40.04,178.23,178.18,7.34085296]
[1755625560992,47.23869139,178.23,178.18,7.34085296]
[1755625561177,0.7,178.22,178.18,7.34085296]
[1755625561495,0.7,178.22,178.18,0.14216157]
[1755625561698,0.7,178.22,178.18,7.34085296]
[1755625561997,47.23869139,178.23,178.18,7.34085296]
[1755625562175,47.93869139,178.23,178.18,0.14216157]
[1755625562497,47.93869139,178.23,178.18,7.34085296]
[1755625562695,47.23869139,178.23,178.18,7.34085296]
[1755625562898,7.19869139,178.21,178.13,14.01559401]
[1755625563099,0.7,178.22,178.13,13.59559401]
[1755625563100,7.19869139,178.17,178.13,13.59559401]
[1755625563283,26.72,178.2,178.12,0.06]
[1755625563284,7.91869139,178.16,178.12,0.06]
[1755625563893,7.91869139,178.16,178.12,13.65559401]
[1755625564476,0.72,178.16,178.12,13.65559401]
[1755625564705,7.91869139,178.16,178.12,13.65559401]
[1755625565002,7.19869139,178.15,178.12,13.65559401]
[1755625565206,7.91869139,178.16,178.12,13.65559401]
[1755625566515,7.19869139,178.17,178.12,20.8542854]
[1755625566699,47.23869139,178.18,178.13,7.34085296]
[1755625567006,47.95869139,178.18,178.14,13.59559401]
[1755625567182,7.19869139,178.19,178.14,7.19869139]
[1755625567575,7.19869139,178.2,178.15,20.7942854]
[1755625567985,47.95869139,178.21,178.17,13.59559401]
[1755625568187,7.91869139,178.2,178.17,13.59559401]
[1755625568391,7.91869139,178.2,178.15,7.19869139]
[1755625568392,0.72,178.19,178.16,13.73775558]
[1755625569100,0.72,178.19,178.16,0.14216157]
[1755625569476,47.95869139,178.21,178.16,13.73775558]
[1755625569872,7.91869139,178.2,178.16,13.73775558]
[1755625570087,0.72,178.19,178.16,13.73775558]
[1755625570409,0.72,178.18,178.12,20.8542854]
[1755625570712,7.19869139,178.17,178.12,20.8542854]
[1755625570884,7.07697439,178.17,178.12,20.8542854]
[1755625571224,7.07697439,178.17,178.13,0.14216157]
[1755625571402,7.79697439,178.17,178.13,0.14216157]
[1755625571704,7.19869139,178.19,178.15,13.59559401]
[1755625572079,7.91869139,178.19,178.15,13.59559401]
[1755625572604,131.0,178.2,178.13,0.14216157]
[1755625572605,0.72,178.18,178.13,7.34085296]
[1755625572787,7.91869139,178.18,178.13,7.34085296]
[1755625572988,7.19869139,178.19,178.15,13.73775558]
[1755625573311,7.91869139,178.18,178.15,0.14216157]
[1755625573987,0.72,178.18,178.15,13.73775558]
[1755625574590,7.19869139,178.16,178.12,0.06]
[1755625574793,7.19869139,178.14,178.12,0.06]
[1755625575093,7.19869139,178.15,178.12,0.06]
[1755625575295,7.91869139,178.16,178.12,0.06]
[1755625575590,7.91869139,178.15,178.12,0.06]
[1755625577098,26.0,178.17,178.12,0.06]
[1755625577313,7.91869139,178.15,178.12,0.06]
[1755625577533,7.19869139,178.13,178.12,0.06]
[1755625577922,7.91869139,178.13,178.12,0.06]
[1755625579346,47.95869139,178.13,178.12,0.06]
[1755625579504,51.72789951,178.13,178.12,0.06]
[1755625579712,52.28944488,178.13,178.12,0.06]
[1755625580445,56.35368079,178.13,178.12,0.06]
[1755625581110,81.79213542,178.13,178.12,0.06]
[1755625581628,78.0229273,178.13,178.12,0.06]
[1755625582248,81.79002745,178.13,178.12,0.06]
[1755625582936,81.81002745,178.13,178.12,0.06]
[1755625583742,78.0429273,178.13,178.12,0.06]
[1755625585945,66.78,178.13,178.12,0.06]
[1755625586158,78.0429273,178.13,178.12,0.06]
[1755625586747,81.80952911,178.13,178.12,0.06]
[1755625587028,78.0429273,178.13,178.12,0.06]
[1755625587359,81.8095298,178.13,178.12,0.06]
[1755625587534,78.0429273,178.13,178.12,0.06]
[1755625588239,55.80976333,178.13,178.12,0.06]
[1755625588459,44.54683603,178.13,178.12,0.06]
[1755625588655,55.80976333,178.13,178.12,0.06]
[1755625589661,55.80976333,178.13,177.97,0.42]
[1755625589662,26.0,178.11,177.97,0.42]
[1755625589864,11.2629273,178.04,178.0,0.42]
[1755625590033,11.2629273,178.05,178.01,13.59559401]
[1755625590217,11.2629273,178.04,178.0,0.42]
[1755625590415,40.06,178.06,178.01,13.59559401]
[1755625590643,26.0,178.09,178.03,24.85852131]
[1755625590644,11.2629273,178.09,178.03,24.85852131]
[1755625590924,66.06,178.1,178.03,0.42]
[1755625591124,11.2629273,178.09,178.04,13.59559401]
[1755625591444,0.72,178.08,178.02,11.2629273]
[1755625591643,11.2629273,178.08,178.03,24.85852131]
[1755625591829,11.2629273,178.08,178.03,0.42]
[1755625592237,11.2629273,178.08,178.01,0.14216157]
[1755625592238,11.2629273,178.06,178.02,13.59559401]
[1755625592437,11.2629273,178.03,177.98,0.42]
[1755625592640,11.2629273,178.02,177.96,0.42]
[1755625592821,11.2629273,177.99,177.96,13.59559401]
[1755625593020,11.2629273,177.99,177.94,51.4229273]
[1755625593021,0.66,178.01,177.94,51.4229273]
[1755625593223,66.14,178.02,177.96,11.2629273]
[1755625593531,66.14,178.02,177.97,0.42]
[1755625593730,77.4029273,178.02,177.98,14.01559401]
[1755625594039,51.4029273,178.04,177.98,24.85852131]
[1755625594245,11.2629273,178.03,177.99,14.01559401]
[1755625594452,11.2629273,178.04,177.99,24.85852131]
[1755625594663,77.4029273,178.07,178.0,0.42]
[1755625594828,40.14,178.06,178.0,0.42]
[1755625595026,26.0,178.07,178.0,0.42]
[1755625595251,51.4029273,178.08,178.0,0.42]
[1755625595759,11.2629273,178.05,178.0,11.40508887]
[1755625595950,11.9229273,178.05,178.0,11.40508887]
[1755625596153,40.8,178.08,178.0,11.82508887]
[1755625596368,11.2629273,178.06,178.0,11.82508887]
[1755625596661,11.2629273,178.03,177.97,0.42]
[1755625596975,11.2629273,178.03,177.97,11.40508887]
[1755625597128,11.2629273,178.02,177.97,11.2629273]
[1755625597327,0.66,178.02,177.98,13.59559401]
[1755625597727,11.2629273,178.04,177.99,11.6829273]
[1755625598065,11.9229273,178.03,177.96,14.15775558]
[1755625598254,11.9229273,178.03,177.98,13.79775558]
[1755625598565,0.66,178.02,177.98,0.20216157]
[1755625598861,11.2629273,178.01,177.98,13.65559401]
[1755625599065,11.9229273,178.01,177.98,13.65559401]
[1755625599229,11.2629273,178.0,177.98,0.06]
[1755625599434,11.9229273,178.0,177.98,0.06]
[1755625599647,11.2629273,178.01,177.98,0.06]
[1755625600132,11.9229273,178.01,177.98,0.06]
[1755625600958,37.2629273,178.02,177.98,0.06]
[1755625601169,26.0,178.02,177.98,0.06]
[1755625601335,37.2629273,178.02,177.98,13.65559401]
[1755625601534,11.2629273,178.0,177.98,0.06]
[1755625601735,0.66,178.01,177.98,0.06]
[1755625602036,0.66,178.04,177.99,13.59559401]
[1755625602250,11.9229273,178.03,177.98,13.65559401]
[1755625602555,0.66,178.02,177.98,13.65559401]
[1755625602937,7.90368251,178.02,177.98,0.06]
[1755625603134,7.24368251,177.99,177.98,0.06]
[1755625603531,7.24368251,178.0,177.98,0.06]
[1755625603836,7.90368251,178.0,177.98,0.06]
[1755625604028,26.0,178.02,177.98,0.06]
[1755625604234,33.24368251,178.02,177.98,0.06]
[1755625604468,7.24368251,178.01,177.98,0.06]
[1755625604642,7.90368251,178.01,177.98,0.06]
[1755625604842,7.90368251,178.0,177.98,0.06]
[1755625605468,7.24368251,178.0,177.98,0.06]
[1755625605639,7.90368251,177.99,177.98,0.06]
[1755625606570,0.66,177.99,177.98,0.06]
[1755625606767,7.24368251,177.99,177.98,0.06]
[1755625607065,7.90368251,177.99,177.98,0.06]
[1755625610270,26.0,177.96,177.87,14.01559401]
[1755625610567,7.24368251,177.9,177.87,13.59559401]
[1755625611305,0.66,177.92,177.87,13.59559401]
[1755625611441,0.66,177.91,177.87,13.59559401]
[1755625611765,7.24368251,177.91,177.87,13.59559401]
[1755625611977,7.24368251,177.92,177.88,0.42]
[1755625612154,0.66,177.93,177.88,0.42]
[1755625612463,7.24368251,177.91,177.87,13.59559401]
[1755625613362,0.66,177.93,177.85,13.59559401]
[1755625613550,7.24368251,177.9,177.87,0.42]
[1755625613866,7.24368251,177.91,177.87,0.48]
[1755625614767,7.24368251,177.91,177.87,0.06]
[1755625614976,7.24368251,177.92,177.88,0.42]
[1755625615592,40.26,177.95,177.87,7.30368251]
[1755625615894,7.24368251,177.92,177.87,0.06]
[1755625616357,0.66,177.91,177.87,0.06]
[1755625616558,7.24368251,177.92,177.88,0.42]
[1755625617394,26.0,177.96,177.91,7.24368251]
[1755625617395,0.66,177.96,177.91,7.24368251]
[1755625617567,7.90368251,177.95,177.9,7.24368251]
[1755625617768,7.90368251,177.94,177.89,7.66368251]
[1755625617969,7.90368251,177.93,177.88,0.14216157]
[1755625618189,7.24368251,177.91,177.88,0.14216157]
[1755625618393,7.24368251,177.91,177.87,0.06]
[1755625618605,0.66,177.9,177.87,0.06]
[1755625618769,7.24368251,177.92,177.87,0.48]
[1755625618976,7.24368251,177.92,177.87,7.72368251]
[1755625619176,7.90368251,177.92,177.87,0.48]
[1755625619477,7.24368251,177.92,177.87,0.06]
[1755625619672,7.24368251,177.92,177.87,7.30368251]
[1755625619673,0.66,177.91,177.87,7.30368251]
[1755625620078,33.24368251,177.94,177.89,13.73775558]
[1755625620281,0.66,177.99,177.94,13.59559401]
[1755625620472,0.66,178.01,177.97,7.24368251]
[1755625620696,0.66,178.0,177.96,7.24368251]
[1755625620984,7.24368251,177.97,177.93,13.59559401]
[1755625621191,0.66,177.96,177.93,13.59559401]
[1755625621394,7.90368251,177.96,177.91,0.14216157]
[1755625621595,7.24368251,177.96,177.92,13.59559401]
[1755625621895,40.26,178.0,177.92,13.59559401]
[1755625621896,0.66,177.99,177.95,13.59559401]
[1755625622098,7.24368251,177.97,177.92,7.38584408]
[1755625622275,7.90368251,177.98,177.94,13.59559401]
[1755625622481,40.92,178.0,177.94,20.83927652]
[1755625622694,48.16368251,178.0,177.96,13.59559401]
[1755625623001,7.90368251,177.99,177.95,13.73775558]
[1755625623211,7.93368251,177.99,177.95,13.73775558]
[1755625623502,47.50368251,178.0,177.95,13.73775558]
[1755625623705,7.93368251,178.01,177.95,21.40143809]
[1755625623877,7.93368251,178.01,177.96,7.24368251]
[1755625624081,0.69,178.06,178.01,13.59559401]
[1755625624410,7.24368251,178.07,178.02,7.24368251]
[1755625624575,0.69,178.07,178.03,7.24368251]
[1755625625007,7.93368251,178.06,178.03,13.59559401]
[1755625625182,0.69,178.05,178.02,13.73775558]
[1755625625582,0.69,178.04,178.01,13.59559401]
[1755625626319,0.69,178.04,178.01,24.85937921]
[1755625626712,11.2637852,178.06,178.01,24.85937921]
[1755625626875,0.69,178.07,178.03,11.2637852]
[1755625627312,0.69,178.07,178.03,24.85937921]
[1755625627883,3.75891766,178.09,178.03,24.85937921]
[1755625628210,11.2637852,178.08,178.03,24.85937921]
[1755625628409,0.69,178.08,178.03,24.85937921]
[1755625629013,0.03,178.1,178.05,24.85937921]
[1755625629301,0.03,178.1,178.07,13.59559401]
[1755625629600,0.03,178.1,178.08,11.2637852]
[1755625629814,0.03,178.1,178.09,25.00154078]
[1755625629999,0.03,178.1,178.09,25.42154078]
[1755625630378,0.03,178.1,178.09,14.15775558]
[1755625630688,0.03,178.1,178.09,25.00154078]
[1755625630894,0.03,178.1,178.09,24.97818978]
[1755625631313,0.03,178.1,178.09,13.71440458]
[1755625631790,0.03,178.1,178.09,13.57224301]
[1755625632816,0.03,178.1,178.07,11.40594677]
[1755625633003,0.03,178.1,178.08,13.59559401]
[1755625633004,0.72,178.1,178.08,13.59559401]
[1755625633203,0.03,178.1,178.08,13.59559401]
[1755625633392,0.03,178.1,178.05,14.15775558]
[1755625633709,0.72,178.1,178.08,13.59559401]
[1755625633912,0.72,178.1,178.06,0.14216157]
[1755625634118,0.69,178.09,178.06,0.14216157]
[1755625635018,0.03,178.1,178.05,24.85937921]
[1755625635019,11.2937852,178.1,178.05,13.59559401]
[1755625635220,0.69,178.09,178.05,24.85937921]
[1755625635384,11.2937852,178.1,178.05,24.85937921]
[1755625635587,0.69,178.08,178.05,13.73775558]
[1755625636019,11.2937852,178.1,178.05,11.40594677]
[1755625636335,11.9837852,178.1,178.05,11.40594677]
[1755625636494,0.69,178.09,178.06,13.59559401]
[1755625637013,11.2937852,178.1,178.05,13.73775558]
[1755625637014,0.69,178.08,178.05,13.73775558]
[1755625637183,11.2637852,178.09,178.05,13.73775558]
[1755625637386,0.03,178.1,178.07,11.2637852]
[1755625637610,0.03,178.1,178.08,13.59559401]
[1755625638699,11.9837852,178.1,178.03,14.15775558]
[1755625638891,0.72,178.1,178.06,0.14216157]
[1755625639093,11.9837852,178.1,178.06,0.14216157]
[1755625639892,11.2937852,178.1,178.06,0.14216157]
[1755625640089,11.2637852,178.08,178.05,13.59559401]
[1755625640493,11.9537852,178.07,178.03,0.14216157]
[1755625640717,11.9537852,178.06,178.03,13.59559401]
[1755625641012,11.9537852,178.05,178.0,13.59559401]
[1755625641220,0.69,178.04,178.01,0.14216157]
[1755625641396,0.69,178.04,178.0,13.59559401]
[1755625641726,0.69,178.04,178.0,11.2637852]
[1755625642220,11.9537852,178.06,178.02,13.59559401]
[1755625642723,11.9537852,178.06,177.99,14.15775558]
[1755625642902,0.69,178.06,178.01,0.14216157]
[1755625643095,0.69,178.05,178.01,0.14216157]
[1755625643501,11.9537852,178.05,178.01,0.14216157]
[1755625643912,11.9537852,178.04,177.99,24.85937921]
[1755625644530,11.9537852,178.04,178.0,0.14216157]
[1755625644698,11.2637852,178.05,178.0,11.40594677]
[1755625644892,26.0,178.08,178.0,0.14216157]
[1755625644893,11.2637852,178.06,178.0,0.14216157]
[1755625645231,11.2637852,178.09,178.04,13.59559401]
[1755625645404,11.9537852,178.09,178.04,13.59559401]
[1755625645600,11.2637852,178.09,178.04,13.59559401]
[1755625645797,0.69,178.08,178.04,13.59559401]
[1755625647622,0.69,178.08,178.03,0.14216157]
[1755625647795,0.03,178.1,178.02,13.59559401]
[1755625647796,11.2637852,178.06,178.02,13.59559401]
[1755625647997,0.69,178.09,178.04,13.59559401]
[1755625648194,11.9537852,178.08,178.04,13.59559401]
[1755625648617,0.69,178.08,178.04,13.59559401]
[1755625648812,0.03,178.1,178.04,11.2637852]
[1755625648997,0.03,178.1,178.08,13.59559401]
[1755625649927,0.72,178.1,178.08,13.59559401]
[1755625650102,11.9837852,178.1,178.08,13.59559401]
[1755625650493,0.72,178.1,178.08,13.59559401]
[1755625650699,0.72,178.1,178.07,0.14216157]
[1755625650897,0.72,178.1,178.08,13.59559401]
[1755625650898,0.03,178.1,178.08,13.59559401]
[1755625651128,0.03,178.1,178.08,11.2637852]
[1755625651827,0.03,178.1,178.08,13.59559401]
[1755625654528,0.72,178.1,178.08,13.59559401]
[1755625654748,0.72,178.1,178.07,0.14216157]